fUST/lending_fUST_20240529
["ID","MTS","AMOUNT","RATE_DAILY","PERIOD"]
[328168471,1716990567376,-6198.45656041,0.00019432,2]
[328168472,1716990586435,151.0,0.0001843,2]
[328168475,1716990593342,173.95546905,0.00014571,2]
[328168476,1716990606631,273.37336231,9.9e-05,2]
[328168478,1716990615023,273.37336231,9.9e-05,2]
[328168479,1716990623589,273.37336231,9.9e-05,2]
[328168491,1716990632343,273.37336231,9.9e-05,2]
[328168524,1716990638322,-118.1192277,0.00014571,2]
[328168525,1716990638332,-164.33784746,0.00018416,2]
[328168527,1716990638341,-685.47338776,0.00018417,2]
[328168529,1716990638351,-9572.33351784,0.00018417,2]
[328168531,1716990638362,-283.67803753,0.00018418,2]
[328168533,1716990638371,-154.84515485,0.00018418,2]
[328168535,1716990638380,-2109.94083119,0.00018418,2]
[328168537,1716990638390,-11074.66768057,0.00018418,2]
[328168539,1716990638400,-18671.5434395,0.00018419,2]
[328168541,1716990638409,-4046.0477397,0.0001843,2]
[328168543,1716990638418,-2638.05894081,0.00019408,2]
[328168545,1716990638428,-522.0982881,0.00019409,2]
[328168547,1716990638437,-522.0982881,0.00019409,2]
[328168549,1716990638446,-7904.3508113,0.00019428,2]
[328168551,1716990638457,-758.09022753,0.00019429,2]
[328168553,1716990638466,-181.68216516,0.00019429,2]
[328168555,1716990638475,-414.9093315,0.00019429,2]
[328168557,1716990638486,-470.97606821,0.00019429,2]
[328168559,1716990638496,-500.0,0.00019429,2]
[328168561,1716990638506,-500.0,0.00019429,2]
[328168564,1716990638516,-500.0,0.00019429,2]
[328168567,1716990638525,-167.12027522,0.00019429,2]
[328168571,1716990638536,-479.1852586,0.00019429,2]
[328168574,1716990638545,-500.0,0.00019429,2]
[328168575,1716990638555,-500.0,0.00019429,2]
[328168578,1716990638564,-500.0,0.00019429,2]
[328168580,1716990638573,-500.0,0.00019429,2]
[328168582,1716990638583,-500.0,0.00019429,2]
[328168584,1716990638592,-500.0,0.00019429,2]
[328168586,1716990638601,-500.0,0.00019429,2]
[328168588,1716990638611,-500.0,0.00019429,2]
[328168589,1716990638620,-500.0,0.00019429,2]
[328168592,1716990638630,-410.56470584,0.0001943,2]
[328168593,1716990638639,-19275.03631944,0.0001943,2]
[328168596,1716990638649,-224.78412403,0.00019432,2]
[328168598,1716990638659,-194.0753606,0.0002,2]
[328168600,1716990638668,-1989.78290995,0.00020907,2]
[328168602,1716990638678,-2116.85616365,0.00020911,2]
[328168604,1716990638687,-524.43466535,0.00020911,2]
[328168606,1716990638696,-2795.91791371,0.00021306,2]
[328168608,1716990638706,-514.07932485,0.00021917,2]
[328168610,1716990638715,-166.666666,0.00021918,2]
[328168612,1716990638724,-166.666666,0.00022431,2]
[328168614,1716990638735,-166.666666,0.00022944,2]
[328168616,1716990638744,-166.666666,0.00023456,2]
[328168618,1716990638754,-166.666666,0.00023969,2]
[328168620,1716990638763,-200.0,0.0002411,2]
[328168621,1716990638772,-281.581764,0.00024384,2]
[328168623,1716990638782,-491.661665,0.00024384,2]
[328168626,1716990638791,-166.666666,0.00024482,2]
[328168628,1716990638801,-8463.45,0.00026487,3]
[328168630,1716990638810,-655.50086617,0.00026497,2]
[328168632,1716990638819,-455.64616916,0.00026497,2]
[328168634,1716990638829,-836.07234002,0.00026497,2]
[328168635,1716990638838,-516.3033437,0.00026497,2]
[328168637,1716990638848,-165.23144653,0.00026497,2]
[328168639,1716990638857,-1122.8991609,0.00026497,2]
[328168642,1716990638867,-1869.04527217,0.00026498,2]
[328168644,1716990638877,-3000.0,0.000265,2]
[328168646,1716990638886,-3000.0,0.0002651,2]
[328168648,1716990638894,-3000.0,0.0002652,2]
[328168649,1716990638904,-3000.0,0.0002653,2]
[328168651,1716990638913,-3000.0,0.0002654,2]
[328168653,1716990638922,-3000.0,0.0002655,2]
[328168655,1716990638931,-3000.0,0.0002656,2]
[328168657,1716990638940,-4182.054699,0.0002657,2]
[328168659,1716990638950,-152.89887292,0.00026795,2]
[328168662,1716990638959,-2795.91791371,0.00027031,2]
[328168664,1716990638969,-152.89887292,0.00027706,2]
[328168666,1716990638979,-260.0,0.00027998,5]
[328168668,1716990638990,-152.89887292,0.00029023,2]
[328168670,1716990638999,-152.89887292,0.00029352,2]
[328168672,1716990639009,-152.89887292,0.00029464,2]
[328168674,1716990639018,-14590.31076821,0.00029934,2]
[328168676,1716990639027,-321.0,0.0003,7]
[328168678,1716990639037,-500.0,0.00030136,4]
[328168679,1716990639046,-5698.09,0.00030136,5]
[328168681,1716990639056,-5698.09,0.00030136,5]
[328168682,1716990639065,-5698.09,0.00030136,5]
[328168683,1716990639074,-5698.09,0.00030136,5]
[328168684,1716990639084,-5698.09,0.00030136,5]
[328168685,1716990639094,-152.89887292,0.00030184,7]
[328168686,1716990639104,-281.581764,0.0003031,2]
[328168687,1716990639113,-491.661665,0.0003031,2]
[328168688,1716990639123,-155.72753798,0.00030401,7]
[328168689,1716990639133,-500.0,0.0003041,4]
[328168690,1716990639143,-500.0,0.00030684,4]
[328168691,1716990639152,-152.89887292,0.00030694,7]
[328168692,1716990639162,-500.0,0.00030958,4]
[328168693,1716990639171,-152.89887292,0.00031039,7]
[328168694,1716990639182,-500.0,0.00031232,4]
[328168695,1716990639192,-152.89887292,0.00031356,7]
[328168696,1716990639202,-500.0,0.00031506,4]
[328168697,1716990639212,-500.0,0.0003178,4]
[328168698,1716990639222,-500.0,0.00031924,2]
[328168699,1716990639232,-364.52992769,0.00032,4]
[328168700,1716990639243,-449.01034019,0.00032,4]
[328168701,1716990639254,-500.0,0.00032054,4]
[328168702,1716990639265,-500.0,0.00032328,4]
[328168703,1716990639278,-500.0,0.00032602,4]
[328168704,1716990639291,-152.89887292,0.00032683,7]
[328168705,1716990639301,-4283.01850039,0.00032683,2]
[328168706,1716990639311,-2795.91791371,0.00032756,2]
[328168707,1716990639322,-5698.09,0.00032791,5]
[328168708,1716990639332,-5698.09,0.00032791,5]
[328168709,1716990639342,-155.03083598,0.00032791,4]
[328168710,1716990639352,-31587.00357355,0.00032796,5]
[328168711,1716990639362,-152.89887302,0.00032845,7]
[328168712,1716990639371,-151.0,0.00032871,15]
[328168713,1716990639381,-500.0,0.00032876,4]
[328168714,1716990639391,-720.62329532,0.00032883,4]
[328168715,1716990639401,-5698.09,0.00032892,5]
[328168716,1716990639411,-284.01585024,0.00032892,4]
[328168717,1716990639422,-184.42856408,0.00032892,4]
[328168718,1716990639433,-154.91751228,0.00032892,4]
[328168719,1716990639444,-165.31755603,0.00032893,7]
[328168720,1716990639454,-155.13513769,0.00032893,4]
[328168721,1716990639464,-732.12927013,0.00032893,4]
[328168722,1716990639479,-41.23735186,0.00032893,4]
[328168723,1716990639490,-847.98525355,0.00032893,4]
[328168724,1716990639499,-93.30878382,0.00032893,4]
[328168725,1716990639512,-7911.81244825,0.00032893,4]
[328168726,1716990639521,-155.93650779,0.00032893,4]
[328168727,1716990639531,-222.15396699,0.00032893,4]
[328168728,1716990639540,-945.99447756,0.00032893,4]
[328168729,1716990639551,-310.39691172,0.00032893,2]
[328168730,1716990639561,-154.95892803,0.00032893,4]
[328168731,1716990639570,-1888.54769992,0.00032893,4]
[328168732,1716990639580,-5698.09,0.00032894,5]
[328168733,1716990639590,-5698.09,0.00032895,5]
[328168734,1716990639600,-1044.43060742,0.00032895,4]
[328168735,1716990639610,-155.00775523,0.00032895,4]
[328168736,1716990639620,-3065.00544058,0.00032895,4]
[328168737,1716990639631,-285.31097948,0.00032895,4]
[328168738,1716990639640,-155.6137437,0.00032895,4]
[328168739,1716990639650,-246.06345069,0.00032895,4]
[328168740,1716990639661,-703.25759355,0.00032895,4]
[328168741,1716990639670,-5000.0,0.000329,10]
[328168742,1716990639680,-151.0,0.00032913,15]
[328168743,1716990639690,-5698.09,0.00032918,5]
[328168744,1716990639699,-151.0,0.00032919,30]
[328168745,1716990639709,-151.0,0.00032919,2]
[328168746,1716990639719,-151.0,0.0003294,2]
[328168747,1716990639728,-226.321402,0.0003294,2]
[328168748,1716990639740,-142039.87133177,0.00032946,30]
[328168749,1716990640428,154.82968734,9.9e-05,2]
[328168752,1716990641895,273.37336231,9.9e-05,2]
[328168760,1716990642275,-503.01188397,0.00018416,2]
[328168761,1716990642291,-2805.11229578,0.00018416,2]
[328168762,1716990642303,-41596.73287748,0.00018416,2]
[328168778,1716990643802,-199.35122861,0.0001833,2]
[328168779,1716990643811,-316.52479536,0.00018416,2]
[328168780,1716990643823,-1895.07055156,0.00018416,2]
[328168807,1716990650300,224.78412403,9.9e-05,2]
[328168808,1716990651094,273.37336231,9.9e-05,2]
[328168809,1716990658445,156.2265955,9.9e-05,2]
[328168810,1716990660100,273.37336231,9.9e-05,2]
[328168811,1716990666307,224.61226059,9.9e-05,2]
[328168812,1716990666847,8739.48363177,9.9e-05,2]
[328168813,1716990667472,156.8699674,9.9e-05,2]
[328168814,1716990668254,273.37336231,9.9e-05,2]
[328168815,1716990677684,273.37336231,9.9e-05,2]
[328168816,1716990680803,1013.52154779,9.9e-05,2]
[328168817,1716990686090,273.37336231,9.9e-05,2]
[328168818,1716990694692,273.37336231,9.9e-05,2]
[328168819,1716990696302,224.73843168,9.9e-05,2]
[328168820,1716990703398,273.37336231,9.9e-05,2]
[328168821,1716990706552,3377.08356661,9.9e-05,2]
[328168822,1716990710365,156.68308505,9.999e-05,2]
[328168823,1716990712029,273.37336231,9.9e-05,2]
[328168824,1716990715331,154.82968734,9.999e-05,2]
[328168825,1716990715498,921.85323911,9.999e-05,2]
[328168826,1716990716296,224.78412403,9.9e-05,2]
[328168827,1716990717410,395.87754993,9.999e-05,2]
[328168828,1716990721245,273.37336231,9.9e-05,2]
[328168829,1716990726477,1173.20393434,9.9e-05,2]
[328168830,1716990729981,273.37336231,9.9e-05,2]
[328168831,1716990733427,154.82968734,9.999e-05,2]
[328168832,1716990739101,273.37336231,9.9e-05,2]
[328168833,1716990743637,2597.59984325,9.9e-05,2]
[328168834,1716990747466,273.37336231,9.9e-05,2]
[328168835,1716990756195,273.37336231,9.9e-05,2]
[328168836,1716990764974,273.37336231,9.9e-05,2]
[328168837,1716990773611,273.37336231,9.9e-05,2]
[328168838,1716990783606,273.37336231,9.9e-05,2]
[328168839,1716990793382,273.37336231,9.9e-05,2]
[328168840,1716990801926,273.37336231,9.9e-05,2]
[328168841,1716990809966,273.37336231,9.9e-05,2]
[328168842,1716990819086,2637.46785836,7.012e-05,2]
[328168843,1716990820270,270.79234617,9.9e-05,2]
[328168844,1716991010010,154.82968734,9.999e-05,2]
[328168845,1716991010140,231.13404386,9.999e-05,2]
[328168846,1716991010679,302.71490703,9.999e-05,2]
[328168847,1716991012395,720.99508433,9.999e-05,2]
[328168848,1716991016153,283.67803753,9.999e-05,2]
[328168849,1716991016323,-1153.28512896,0.00010954,2]
[328168850,1716991016351,-8121.09622424,0.00010954,2]
[328168851,1716991016364,-1153.28512896,0.00010954,2]
[328168852,1716991016377,-297.95216464,0.00010954,2]
[328168853,1716991016386,-154.82968734,0.00010955,2]
[328168854,1716991016395,-2109.94083119,0.00010955,2]
[328168855,1716991016404,-685.47338776,0.00010955,2]
[328168856,1716991016420,-285.46504925,0.00010955,2]
[328168857,1716991016430,-522.0982881,0.00010956,2]
[328168858,1716991016439,-456.0641796,0.00010957,2]
[328168859,1716991016448,-1044.69294597,0.00010957,2]
[328168860,1716991016459,-524.66216611,0.00010957,2]
[328168861,1716991016468,-1871.01679575,0.00010958,2]
[328168862,1716991016478,-1620.13802213,0.00010958,2]
[328168863,1716991017826,164.33784746,9.999e-05,2]
[328168864,1716991019257,1340.69501905,9.999e-05,2]
[328168865,1716991023262,371.81130833,9.999e-05,2]
[328168866,1716991035969,154.82968734,9.999e-05,2]
[328168867,1716991038194,836.65686665,9.999e-05,2]
[328168868,1716991040598,154.82968734,9.999e-05,2]
[328168869,1716991042715,411.05184853,9.999e-05,2]
[328168870,1716991045551,154.82968734,9.999e-05,2]
[328168871,1716991053923,1498.63618319,9.999e-05,2]
[328168872,1716991078076,773.36662199,9.999e-05,2]
[328168873,1716991088038,758.57976486,9.999e-05,2]
[328168874,1716991088092,181.68216516,9.999e-05,2]
[328168875,1716991089638,523.40016496,9.999e-05,2]
[328168876,1716991105118,24900.0,9.952e-05,2]
[328168877,1716991119107,1541.41735124,7.012e-05,2]
[328168878,1716991143189,283.67803753,9.999e-05,2]
[328168879,1716991145693,302.71490703,9.999e-05,2]
[328168880,1716991148480,685.47338776,9.999e-05,2]
[328168881,1716991149114,154.82968734,9.999e-05,2]
[328168882,1716991151769,522.0982881,9.999e-05,2]
[328168883,1716991158838,164.33784746,9.999e-05,2]
[328168884,1716991158873,173.99872366,9.952e-05,2]
[328168885,1716991162529,2900.13287437,9.952e-05,2]
[328168886,1716991166361,301.72923525,9.952e-05,2]
[328168887,1716991168280,1340.69501905,9.999e-05,2]
[328168888,1716991168886,273.37336231,9.9e-05,2]
[328168889,1716991177057,273.37336231,9.9e-05,2]
[328168890,1716991177610,529.26882942,9.999e-05,2]
[328168891,1716991188804,1044.69294597,9.999e-05,2]
[328168892,1716991190912,720.99508433,9.999e-05,2]
[328168893,1716991199282,1871.01679575,9.999e-05,2]
[328168894,1716991205233,411.05184853,9.999e-05,2]
[328168895,1716991206985,514.49757357,9.999e-05,2]
[328168896,1716991212079,456.0641796,9.999e-05,2]
[328168897,1716991214207,836.65686665,9.999e-05,2]
[328168898,1716991234451,551.40633265,9.999e-05,2]
[328168899,1716991254666,523.40016496,9.999e-05,2]
[328168900,1716991282238,283.67803753,9.999e-05,2]
[328168901,1716991287459,685.47338776,9.999e-05,2]
[328168902,1716991305857,164.33784746,9.999e-05,2]
[328168903,1716991328365,371.81130833,9.999e-05,2]
[328168906,1716991349813,1340.69501905,9.999e-05,2]
[328168910,1716991411222,283.67803753,9.999e-05,2]
[328168911,1716991416494,685.47338776,9.999e-05,2]
[328168912,1716991430150,18686.3135757,9.725e-05,2]
[328168917,1716991488832,1340.69501905,9.999e-05,2]
[328168918,1716991540253,283.67803753,9.999e-05,2]
[328168919,1716991547014,154.82968734,9.999e-05,2]
[328168920,1716991551275,-417.15417306,0.00010708,2]
[328168921,1716991559502,685.47338776,9.999e-05,2]
[328168922,1716991601844,8354.0074147,9.707e-05,2]
[328168923,1716991644085,-412.70094149,0.00010701,2]
[328168924,1716991645098,-594.05532191,0.00010701,2]
[328168925,1716991646171,-9516.28073619,0.00010701,2]
[328168926,1716991646193,-2109.94083119,0.00010701,2]
[328168927,1716991646215,-10338.97286999,0.00010701,2]
[328168928,1716991654099,-1677.55074825,0.00010604,2]
[328168929,1716991654120,-2375.16424942,0.00010699,2]
[328168930,1716991749296,-2682.52983983,0.00010684,2]
[328168931,1716991749320,-1980.05193058,0.00010684,2]
[328168932,1716991749343,-59473.83201727,0.00010684,2]
[328168933,1716991749366,-2117.39226672,0.00010685,2]
[328168934,1716991749387,-10523.03699959,0.00010685,2]
[328168935,1716991749408,-11074.66768057,0.00010686,2]
[328168936,1716991749429,-2109.94083119,0.00010686,2]
[328168937,1716991749449,-57712.64387214,0.00010686,2]
[328168938,1716991749470,-1900.31793063,0.00010687,2]
[328168939,1716991749491,-2007.13401331,0.00010687,2]
[328168940,1716991749519,-5897.21679799,0.00010687,2]
[328168941,1716991749542,-14843.71469201,0.00010688,2]
[328168942,1716991749570,-4431.32162743,0.00010688,2]
[328168943,1716991749591,-1767.22688024,0.00010702,2]
[328168944,1716991749613,-178.04744387,0.00010707,2]
[328168945,1716991749634,-685.24407498,0.00010707,2]
[328168946,1716991749660,-892.34182789,0.00010714,2]
[328168947,1716991749683,-391.98743476,0.0001073,2]
[328168948,1716991749706,-310.28678769,0.00010736,2]
[328168949,1716991749728,-455.55424612,0.0001084,2]
[328168950,1716991749751,-835.88149688,0.0001084,2]
[328168951,1716991749772,-551.06447862,0.0001084,2]
[328168952,1716991749793,-654.68989008,0.0001084,2]
[328168953,1716991749813,-190.09572202,0.00010846,2]
[328168954,1716991749834,-530.95383861,0.00010846,2]
[328168955,1716991749854,-1043.40907474,0.00010846,2]
[328168956,1716991749875,-631.93150555,0.00010846,2]
[328168957,1716991749896,-204.55837279,0.0001085,2]
[328168958,1716991749916,-516.3033437,0.00010946,2]
[328168959,1716991749937,-1408.08582695,0.00010947,2]
[328168960,1716991749958,-410.28045557,0.00010947,2]
[328168961,1716991749979,-181.5967108,0.00010948,2]
[328168962,1716991750000,-175.78295392,0.00010948,2]
[328168963,1716991750021,-302.58444821,0.00010948,2]
[328168964,1716991750042,-344.07117507,0.00010949,2]
[328168965,1716991750063,-2638.05894081,0.00010949,2]
[328168966,1716991750084,-1501.53837612,0.00010953,2]
[328168967,1716991750107,-864.77616133,0.00010953,2]
[328168968,1716991750129,-154.9844242,0.00010954,2]
[328168969,1716991750149,-299.20437215,0.00010954,2]
[328168970,1716991750169,-467.34,0.00010959,2]
[328168971,1716991750190,-389.45,0.00010959,2]
[328168972,1716991750211,-324.55,0.00010959,2]
[328168973,1716991750232,-270.45,0.00010959,2]
[328168974,1716991750256,-225.38,0.00010959,2]
[328168975,1716991750278,-155.0309381,0.00013653,2]
[328168976,1716991750299,-470.97606821,0.00013654,2]
[328168977,1716991750319,-165.23144653,0.00013657,2]
[328168978,1716991750340,-166.24017904,0.00013657,2]
[328168979,1716991750510,-230.93062493,0.00013657,2]
[328168980,1716991750531,-9572.33351784,0.00013657,2]
[328168981,1716991750552,-219.7979489,0.00013669,2]
[328168982,1716991750573,-1677.55074822,0.00014178,2]
[328168983,1716991750594,-1677.55074822,0.00017752,2]
[328168984,1716991750614,-154.84515485,0.00018225,2]
[328168985,1716991750634,-154.922514,0.00018225,2]
[328168986,1716991750657,-280.04164012,0.00018231,2]
[328168987,1716991750677,-156.56609764,0.00018411,2]
[328168988,1716991750700,-395.54281002,0.00018411,2]
[328168989,1716991750721,-1011.75504724,0.00018411,2]
[328168990,1716991750744,-154.96896289,0.00018411,2]
[328168991,1716991750766,-703.25759255,0.00018413,2]
[328168992,1716991750787,-155.13513769,0.00018414,2]
[328168993,1716991750813,-3065.55842789,0.00018414,2]
[328168994,1716991750838,-165.31755603,0.00018415,7]
[328168995,1716991750859,-189.53496638,0.00018415,2]
[328168996,1716991750881,-189.66516889,0.00018415,2]
[328168997,1716991750903,-215.91037311,0.00018415,2]
[328168998,1716991750923,-2031.89581254,0.00018415,2]
[328168999,1716991750943,-42014.70687157,0.00018415,2]
[328169000,1716991750964,-156.5200847,0.00018415,2]
[328169001,1716991750985,-210.87959839,0.00018415,2]
[328169002,1716991751007,-284.01585024,0.00018415,2]
[328169003,1716991751027,-281.72074989,0.00018415,2]
[328169004,1716991751046,-155.02790502,0.00018415,2]
[328169005,1716991751068,-208.32056801,0.00018415,2]
[328169006,1716991751089,-155.0,0.00018415,2]
[328169007,1716991751109,-227.59435625,0.00018415,2]
[328169008,1716991751129,-194.61137756,0.00018415,2]
[328169009,1716991751150,-173.21337903,0.00018415,2]
[328169010,1716991751171,-155.56310174,0.00018415,2]
[328169011,1716991751201,187.82,0.00010959,2]
[328169012,1716991751227,-448.26403572,0.00019178,2]
[328169013,1716991751251,-500.0,0.00019178,2]
[328169014,1716991751276,-500.0,0.00019178,2]
[328169015,1716991751297,-500.0,0.00019178,2]
[328169016,1716991751318,-167.12027522,0.00019178,2]
[328169017,1716991751341,-500.0,0.00019178,2]
[328169018,1716991751366,-500.0,0.00019178,2]
[328169019,1716991751390,-500.0,0.00019178,2]
[328169020,1716991751418,-500.0,0.00019178,2]
[328169021,1716991751442,-500.0,0.00019178,2]
[328169022,1716991751466,-500.0,0.00019178,2]
[328169023,1716991751488,-500.0,0.00019178,2]
[328169024,1716991751511,-479.1852586,0.00019178,2]
[328169025,1716991751534,-500.0,0.00019178,2]
[328169026,1716991751558,-500.0,0.00019178,2]
[328169027,1716991751582,-500.0,0.00019178,2]
[328169028,1716991751605,-324.82794241,0.00019178,2]
[328169029,1716991751632,-500.0,0.00019178,2]
[328169030,1716991751660,-500.0,0.00019178,2]
[328169031,1716991751688,-229.69821764,0.00019178,2]
[328169032,1716991751713,-500.0,0.00019178,2]
[328169033,1716991751739,-568.90946529,0.00019178,2]
[328169034,1716991751764,-500.0,0.00019178,2]
[328169035,1716991751803,-550.00000001,0.00019178,2]
[328169036,1716991751831,-500.0,0.00019178,2]
[328169037,1716991751856,-500.0,0.00019178,2]
[328169038,1716991751880,-365.0,0.00019178,2]
[328169039,1716991751906,-500.0,0.00019178,2]
[328169040,1716991751930,-500.0,0.00019178,2]
[328169041,1716991751954,-500.0,0.00019178,2]
[328169042,1716991751979,-250.0,0.00019178,2]
[328169043,1716991752003,-500.0,0.00019178,2]
[328169044,1716991752027,-500.0,0.00019178,2]
[328169045,1716991752052,-500.0,0.00019178,2]
[328169046,1716991752076,-556.02948985,0.00019178,2]
[328169047,1716991752097,-420.0,0.00019178,2]
[328169048,1716991752118,-173.19584013,0.00019178,2]
[328169049,1716991752140,-500.0,0.00019178,2]
[328169050,1716991752162,-239.28829617,0.00019178,2]
[328169051,1716991752184,-24900.0,0.00019311,2]
[328169052,1716991752206,-154.91751228,0.00019999,2]
[328169053,1716991752227,-194.0753606,0.0002,2]
[328169054,1716991752249,-1352.47027716,0.0002,2]
[328169055,1716991752271,-239.12476103,0.00020911,2]
[328169056,1716991752292,-184.42856408,0.00020912,2]
[328169057,1716991752313,-761.22774133,0.00020912,2]
[328169058,1716991752335,-156.33757926,0.00020912,2]
[328169059,1716991752358,-154.84515485,0.00020913,2]
[328169060,1716991752381,-3982.37422665,0.00021,2]
[328169061,1716991752402,-1677.55074822,0.00021326,2]
[328169062,1716991752423,-500.0,0.00021917,2]
[328169063,1716991752445,-166.666666,0.00021918,2]
[328169064,1716991752466,-514.07932485,0.00022191,3]
[328169065,1716991752487,-166.666666,0.00022431,2]
[328169066,1716991752508,-166.666666,0.00022944,2]
[328169067,1716991752529,-1933.29881571,0.00023,2]
[328169140,1716991832847,-187.5290451,0.00020253,2]
[328169142,1716991832857,-209.5203128,0.00020812,2]
[328169144,1716991832866,-171.5584309,0.00020901,2]
[328169146,1716991832877,-1945.83383582,0.00020901,2]
[328169148,1716991832887,-2109.94083119,0.00020902,2]
[328169150,1716991832896,-156.51,0.00020903,3]
[328169152,1716991832905,-469.57,0.00020903,3]
[328169170,1716991833062,-3671.95866013,0.00020909,2]
[328169173,1716991833076,-15603.07765931,0.00020909,2]
[328169175,1716991833085,-1122.8991609,0.0002091,2]
[328169176,1716991833094,-156.68308505,0.0002091,2]
[328169178,1716991833104,-302.71490703,0.0002091,2]
[328169180,1716991833113,-758.57976486,0.0002091,2]
[328169182,1716991833122,-194.0753606,0.00020911,2]
[328169184,1716991833131,-402.0948346,0.00020911,2]
[328169186,1716991833140,-500.0,0.00020911,2]
[328169187,1716991833149,-192.11315816,0.00020911,2]
[328169189,1716991833159,-500.0,0.00020911,2]
[328169191,1716991833168,-500.0,0.00020911,2]
[328169193,1716991833177,-290.73726413,0.00020911,2]
[328169195,1716991833186,-500.0,0.00020911,2]
[328169197,1716991833195,-500.0,0.00020911,2]
[328169199,1716991833205,-500.0,0.00020911,2]
[328169201,1716991833214,-59473.83201727,0.00020912,2]
[328169204,1716991833226,-5198.72936178,0.00020912,2]
[328169206,1716991833235,-1674.83779257,0.00020912,2]
[328169208,1716991833247,-7269.94504881,0.00020913,2]
[328169295,1716991838845,-334.39650053,0.00020811,2]
[328169298,1716991838858,-1645.65543005,0.00020811,2]
[328169300,1716991838868,-632.89526442,0.00020913,2]
[328169302,1716991838877,-2678.02258047,0.00020913,2]
[328169304,1716991838887,-640.59988326,0.00020913,2]
[328169306,1716991838896,-7421.7890694,0.00020913,2]
[328169308,1716991838905,-313.02,0.00022273,3]
[328169310,1716991838915,-2766.00148004,0.00023,2]
[328169312,1716991838924,-3983.82636158,0.00023,2]
[328169314,1716991838935,-156.8699674,0.00023,2]
[328169316,1716991838945,-166.666666,0.00023456,2]
[328169318,1716991838954,-166.666666,0.00023969,2]
[328169320,1716991838964,-200.0,0.0002411,2]
[328169322,1716991838975,-167.003835,0.00024384,2]
[328169324,1716991838984,-683.198466,0.00024384,2]
[328169325,1716991838993,-166.666666,0.00024482,2]
[328169327,1716991839002,-1677.55074822,0.000249,2]
[328169329,1716991839012,-209.52031279,0.00024967,2]
[328169331,1716991839022,-486.12675091,0.00025,2]
[328169333,1716991839032,-151.0,0.00025165,5]
[328169335,1716991839042,-151.0,0.00026258,5]
[328169337,1716991839053,-3000.0,0.000265,2]
[328169339,1716991839062,-3000.0,0.0002651,2]
[328169340,1716991839072,-3000.0,0.0002652,2]
[328169342,1716991839082,-3000.0,0.0002653,2]
[328169344,1716991839091,-3000.0,0.0002654,2]
[328169346,1716991839100,-3000.0,0.0002655,2]
[328169347,1716991839110,-3000.0,0.0002656,2]
[328169348,1716991839119,-4182.054699,0.0002657,2]
[328169349,1716991839130,-158.06628854,0.00027109,2]
[328169350,1716991839140,-151.0,0.00027351,7]
[328169351,1716991839150,-5990.77,0.00027545,3]
[328169352,1716991839159,-158.06628854,0.00027555,2]
[328169353,1716991839169,-158.06628854,0.00028313,2]
[328169354,1716991839179,-151.0,0.00028444,7]
[328169355,1716991839190,-158.06628854,0.00028452,2]
[328169356,1716991839200,-158.06628854,0.00028498,2]
[328169357,1716991839210,-209.52031279,0.00029123,2]
[328169358,1716991839222,-158.06628854,0.00029387,2]
[328169359,1716991839232,-158.06628854,0.00029439,2]
[328169360,1716991839243,-151.0,0.00029536,7]
[328169361,1716991839253,-155.21441404,0.00029977,2]
[328169363,1716991839263,-348.0,0.0003,7]
[328169364,1716991839273,-229.2829239,0.0003,3]
[328169366,1716991839284,-4992.31,0.00030116,3]
[328169368,1716991839293,-257.0,0.00030136,7]
[328169370,1716991839303,-500.0,0.00030136,4]
[328169372,1716991839313,-500.0,0.00030136,4]
[328169373,1716991839323,-500.0,0.00030136,4]
[328169374,1716991839333,-4985.83,0.00030136,5]
[328169375,1716991839343,-4985.83,0.00030136,5]
[328169376,1716991839353,-4985.83,0.00030136,5]
[328169377,1716991839364,-4985.83,0.00030136,5]
[328169378,1716991839374,-4985.83,0.00030136,5]
[328169379,1716991839383,-4985.83,0.00030136,5]
[328169380,1716991839393,-4985.83,0.00030136,5]
[328169381,1716991839403,-500.0,0.00030136,4]
[328169382,1716991839413,-490.88075341,0.00030136,4]
[328169383,1716991839423,-524.20716459,0.00030136,4]
[328169384,1716991839433,-526.9163121,0.00030136,4]
[328169385,1716991839443,-500.0,0.00030136,4]